bitfinex/quotes_BTCUSD_20250205
["timestamp","ask_amount","ask_price","bid_price","bid_amount"]
[1738715014433,0.00057506,97911.0,97910.0,0.56289169]
[1738715014599,0.00057506,97911.0,97910.0,0.44033069]
[1738715015024,0.00057506,97911.0,97910.0,0.33794563]
[1738715015218,0.12967506,97911.0,97910.0,0.33794563]
[1738715015440,0.14051378,97911.0,97910.0,0.3298]
[1738715015630,0.12967506,97911.0,97910.0,0.33784795]
[1738715016214,0.14863703,97911.0,97910.0,0.33784795]
[1738715016602,0.23295703,97911.0,97910.0,0.00804795]
[1738715016943,0.23295703,97911.0,97897.0,0.3298]
[1738715016944,0.172471,97902.0,97897.0,0.3298]
[1738715017144,0.0821,97897.0,97895.0,0.0001068]
[1738715017359,0.172479,97896.0,97895.0,0.0001068]
[1738715017975,0.06886197,97896.0,97895.0,0.0001068]
[1738715019625,0.15046197,97896.0,97895.0,0.0001068]
[1738715019994,0.18080112,97896.0,97895.0,0.0001068]
[1738715021210,0.15046197,97896.0,97895.0,0.0001068]
[1738715022328,0.18080112,97896.0,97895.0,0.0001068]
[1738715022568,0.30618618,97896.0,97895.0,0.0001068]
[1738715022742,0.38277027,97896.0,97895.0,0.0001068]
[1738715023145,0.09920112,97896.0,97895.0,0.0001068]
[1738715024432,0.09920112,97896.0,97895.0,0.00835409]
[1738715024632,0.09920112,97896.0,97895.0,0.0001068]
[1738715024838,0.09920112,97896.0,97895.0,0.00835409]
[1738715025288,0.09920112,97896.0,97895.0,0.13093409]
[1738715025506,0.04930112,97896.0,97895.0,0.13093409]
[1738715025888,0.01896197,97896.0,97895.0,0.13093409]
[1738715026288,0.01896197,97896.0,97895.0,0.46073409]
[1738715026493,0.03033915,97906.0,97904.0,0.122568]
[1738715026694,0.03033915,97906.0,97904.0,0.22495306]
[1738715026873,0.03033915,97906.0,97905.0,0.00823877]
[1738715027280,0.03033915,97906.0,97905.0,0.11062383]
[1738715028081,0.01902778,97906.0,97905.0,0.23319083]
[1738715029602,0.01902778,97920.0,97910.0,0.122561]
[1738715029804,0.01902778,97920.0,97905.0,0.00823877]
[1738715030006,0.0782,97912.0,97910.0,0.00821199]
[1738715030169,0.0782,97912.0,97896.0,0.28960343]
[1738715030372,0.01960284,97911.0,97897.0,0.10238506]
[1738715030622,0.163421,97907.0,97897.0,0.10238506]
[1738715030827,0.122569,97905.0,97897.0,0.22496206]
[1738715031325,0.122577,97897.0,97890.0,0.12616543]
[1738715031531,0.122577,97897.0,97887.0,0.55696543]
[1738715031934,0.01902778,97896.0,97887.0,0.55696543]
[1738715032386,0.01902778,97896.0,97895.0,0.0001068]
[1738715032591,0.21206293,97896.0,97895.0,0.0001068]
[1738715032975,0.14582778,97896.0,97895.0,0.0001068]
[1738715033563,0.1762795,97896.0,97895.0,0.0001068]
[1738715037084,0.18649907,97896.0,97895.0,0.0001068]
[1738715037304,0.42081907,97896.0,97895.0,0.0001068]
[1738715037588,0.52320413,97896.0,97895.0,0.0001068]
[1738715037806,0.62569885,97896.0,97895.0,0.0001068]
[1738715038371,0.62669885,97896.0,97895.0,0.0001068]
[1738715038572,0.62569885,97896.0,97895.0,0.0001068]
[1738715038993,0.52620413,97896.0,97895.0,0.0001068]
[1738715039239,0.42381907,97896.0,97895.0,0.0001068]
[1738715039573,0.42681907,97896.0,97895.0,0.0001068]
[1738715040012,0.39636735,97896.0,97895.0,0.0001068]
[1738715040465,0.49875241,97896.0,97895.0,0.0001068]
[1738715040639,0.60124713,97896.0,97895.0,0.0001068]
[1738715041088,0.60124713,97896.0,97872.0,0.0001069]
[1738715041089,0.122607,97873.0,97872.0,0.0001069]
[1738715041294,0.50841206,97873.0,97872.0,0.0001069]
[1738715041510,0.58661206,97873.0,97872.0,0.0001069]
[1738715041720,0.122621,97862.0,97854.0,0.3298]
[1738715041945,0.145621,97862.0,97854.0,0.3298]
[1738715042146,0.0491,97871.0,97861.0,0.00840115]
[1738715042381,0.12262,97863.0,97861.0,0.12616543]
[1738715042618,0.15,97868.0,97854.0,0.3298]
[1738715042853,0.122629,97856.0,97854.0,0.32984794]
[1738715043545,0.163497,97861.0,97854.0,0.32984794]
[1738715043756,0.163483,97869.0,97854.0,0.32984794]
[1738715043757,0.15,97868.0,97854.0,0.32984794]
[1738715043988,0.01902778,97855.0,97854.0,0.32984794]
[1738715044305,0.01902778,97855.0,97854.0,0.45247894]
[1738715044510,0.01902778,97855.0,97854.0,1.067364]
[1738715045329,0.01902778,97870.0,97863.0,0.122619]
[1738715045555,0.01902778,97870.0,97860.0,0.25233086]
[1738715045756,0.01902778,97870.0,97861.0,0.10238506]
[1738715045956,0.01902778,97870.0,97869.0,0.122612]
[1738715046186,0.01902778,97870.0,97862.0,0.163495]
[1738715046187,0.01902778,97870.0,97867.0,0.122614]
[1738715046392,0.01902778,97870.0,97863.0,0.163493]
[1738715046600,0.01902778,97870.0,97865.0,0.122617]
[1738715046907,0.01902778,97870.0,97863.0,0.163493]
[1738715046908,0.01902778,97870.0,97866.0,0.122616]
[1738715047105,0.01902778,97870.0,97867.0,0.00845426]
[1738715047436,0.01903597,97873.0,97868.0,0.163485]
[1738715047614,0.01903597,97873.0,97872.0,0.122609]
[1738715047999,0.01903597,97882.0,97874.0,0.163475]
[1738715048202,0.01903597,97882.0,97875.0,0.163473]
[1738715048423,0.01903597,97882.0,97874.0,0.10238506]
[1738715048589,0.122602,97877.0,97876.0,0.00838298]
[1738715048789,0.122606,97874.0,97873.0,0.3298]
[1738715050061,0.122606,97874.0,97873.0,0.3308]
[1738715051595,0.14163758,97875.0,97873.0,0.3308]
[1738715051800,0.01903258,97875.0,97873.0,0.3308]
[1738715052169,0.14163558,97877.0,97873.0,0.3308]
[1738715052294,0.122605,97875.0,97873.0,0.3308]
[1738715052490,0.01903258,97877.0,97873.0,0.3308]
[1738715052491,0.0002245,97874.0,97873.0,0.3308]
[1738715052704,0.0002245,97874.0,97873.0,0.452407]
[1738715052902,0.0002245,97874.0,97873.0,0.3298]
[1738715053115,0.0002245,97874.0,97873.0,0.3308]
[1738715053359,0.0002245,97874.0,97873.0,0.3298]
[1738715053759,0.0002245,97874.0,97873.0,0.3308]
[1738715054563,0.0002245,97874.0,97873.0,0.3298]
[1738715055238,0.20128129,97874.0,97873.0,0.3298]
[1738715055599,0.1716305,97874.0,97873.0,0.3298]
[1738715055988,0.19066308,97874.0,97873.0,0.3308]
[1738715056402,0.19066308,97874.0,97873.0,0.3298]
[1738715056515,0.19066308,97874.0,97873.0,0.3308]
[1738715058810,0.01925708,97874.0,97873.0,0.3308]
[1738715059252,0.14186308,97874.0,97873.0,0.3308]
[1738715060391,0.01925708,97874.0,97873.0,0.3308]
[1738715060821,0.14186308,97874.0,97873.0,0.3308]
[1738715061239,0.01925708,97874.0,97873.0,0.3308]
[1738715062230,0.01925708,97874.0,97873.0,0.3391774]
[1738715063396,0.0002245,97874.0,97873.0,0.3391774]
[1738715065230,0.0002245,97874.0,97873.0,0.44156246]
[1738715065438,0.0002245,97874.0,97873.0,0.64396946]
[1738715066062,0.0002245,97874.0,97873.0,1.07476946]
[1738715066462,0.0002245,97874.0,97873.0,1.07376946]
[1738715066663,0.0002245,97874.0,97873.0,1.08523594]
[1738715067127,0.0002245,97874.0,97873.0,1.08423594]
[1738715067289,0.0002245,97874.0,97873.0,1.09153594]
[1738715067728,0.0002245,97874.0,97873.0,1.09253594]
[1738715067885,0.0002245,97874.0,97873.0,1.09153594]
[1738715068286,0.0002245,97874.0,97873.0,1.09253594]
[1738715069868,0.0002245,97874.0,97873.0,1.09153594]
[1738715070015,0.0002245,97874.0,97873.0,1.09253594]
[1738715070421,0.0002245,97874.0,97873.0,1.09153594]
[1738715070624,0.0002245,97874.0,97873.0,1.09253594]
[1738715071138,0.0002245,97874.0,97873.0,1.09153594]
[1738715071347,0.0002245,97874.0,97873.0,1.09253594]
[1738715073016,0.0002245,97874.0,97873.0,1.08523594]
[1738715073193,0.0002245,97874.0,97873.0,1.07476946]
[1738715073394,0.0002245,97874.0,97873.0,0.87236246]
[1738715073899,0.0002245,97874.0,97873.0,0.87136246]
[1738715074131,0.0002245,97874.0,97873.0,0.87236246]
[1738715074487,0.0002245,97874.0,97873.0,0.87136246]
[1738715074701,0.0002245,97874.0,97873.0,0.94776246]
[1738715075059,0.0002245,97874.0,97873.0,0.94676246]
[1738715076315,0.0002245,97874.0,97873.0,0.94776246]
[1738715076488,0.0002245,97874.0,97873.0,1.07036946]
[1738715076974,0.0002245,97874.0,97873.0,1.07983131]
[1738715077630,0.0002245,97874.0,97873.0,1.08083131]
[1738715077838,0.0002245,97874.0,97873.0,1.07983131]
[1738715078039,0.0002245,97874.0,97873.0,1.08083131]
[1738715080338,0.0002245,97874.0,97873.0,1.07983131]
[1738715080538,0.0002245,97874.0,97873.0,1.22983131]
[1738715080744,0.0002245,97874.0,97873.0,1.23083131]
[1738715081151,5e-07,97874.0,97873.0,1.26383131]
[1738715081353,0.00022428,97896.0,97895.0,0.20368]
[1738715081529,0.00022428,97896.0,97895.0,1.06666506]
[1738715081764,0.00022428,97896.0,97895.0,1.22489175]
[1738715083328,0.00022428,97896.0,97895.0,1.22589175]
[1738715083535,0.00022428,97896.0,97895.0,1.23619608]
[1738715083715,0.00031515,97896.0,97895.0,1.15509608]
[1738715083915,0.00031515,97896.0,97895.0,1.14479175]
[1738715084578,0.00031515,97896.0,97895.0,0.99379175]
[1738715085998,0.00031515,97896.0,97895.0,0.99479175]
[1738715086228,0.00031515,97896.0,97895.0,0.99379175]
[1738715086796,0.00031515,97896.0,97895.0,0.99479175]
[1738715088959,0.00031515,97896.0,97895.0,0.99379175]
[1738715089371,0.00031515,97896.0,97895.0,0.99479175]
[1738715089572,0.00031515,97896.0,97895.0,0.99379175]
[1738715090007,0.00031515,97896.0,97895.0,0.44141175]
[1738715090636,0.00031515,97896.0,97895.0,0.44041175]
[1738715091034,0.00031515,97896.0,97895.0,0.44141175]
[1738715092608,0.00031515,97896.0,97895.0,0.44041175]
[1738715093298,0.00031515,97896.0,97895.0,0.44141175]
[1738715093694,0.00031515,97896.0,97895.0,0.44041175]
[1738715093869,0.00031515,97896.0,97895.0,0.44141175]
[1738715094594,0.00031515,97896.0,97895.0,0.87221175]
[1738715095276,0.00031515,97896.0,97895.0,0.88224322]
[1738715095614,0.00031515,97896.0,97895.0,1.00382322]
[1738715095818,0.00031515,97896.0,97895.0,1.00482322]
[1738715096215,0.00031515,97896.0,97895.0,1.00382322]
[1738715096418,0.00031515,97896.0,97895.0,1.00482322]
[1738715098722,0.00031515,97896.0,97895.0,1.00382322]
[1738715099127,0.00031515,97896.0,97895.0,1.00482322]
[1738715099913,0.00031515,97896.0,97895.0,1.00382322]
[1738715100120,0.00031515,97896.0,97895.0,0.99479175]
[1738715102422,0.00031515,97896.0,97895.0,0.99379175]
[1738715103862,0.00031515,97896.0,97895.0,1.07419175]
[1738715104134,0.00031515,97896.0,97895.0,1.07519175]
[1738715104366,0.00031515,97896.0,97895.0,1.22519175]
[1738715104639,0.00031515,97896.0,97895.0,1.25819175]
[1738715104640,1.5e-07,97896.0,97895.0,1.25819175]
[1738715105515,1.5e-07,97896.0,97895.0,1.25719175]
[1738715105945,0.0001067,97911.0,97910.0,0.122561]
[1738715106170,0.00046929,97911.0,97910.0,1.21094606]
[1738715106401,2.9e-07,97911.0,97910.0,1.21822513]
[1738715106579,0.1634296,97966.0,97947.0,0.122515]
[1738715106580,0.049,97953.0,97947.0,0.122515]
[1738715106819,0.09155733,97948.0,97947.0,0.56197741]
[1738715107198,0.09155733,97948.0,97947.0,0.99277741]
[1738715107422,9.094e-05,97948.0,97947.0,0.99277741]
[1738715113858,0.00019784,97948.0,97947.0,0.99277741]
[1738715119281,0.00019784,97948.0,97947.0,1.14277741]
[1738715119398,0.00019784,97948.0,97947.0,1.17577741]
[1738715120946,0.00019784,97948.0,97947.0,1.16577741]
[1738715121349,0.00019784,97948.0,97947.0,1.14277741]
[1738715127607,0.00019784,97948.0,97947.0,1.15277741]
[1738715127822,0.00019784,97948.0,97947.0,1.23527741]
[1738715128962,0.00019784,97948.0,97947.0,1.25827741]
[1738715129131,0.00019784,97948.0,97947.0,1.14277741]
[1738715129759,0.08169784,97948.0,97947.0,0.99277741]
[1738715130281,0.08169784,97948.0,97947.0,0.87026241]
[1738715131211,0.15051822,97948.0,97947.0,0.76787735]
[1738715131428,0.13009784,97948.0,97947.0,0.76787735]
[1738715133320,0.13009784,97948.0,97947.0,0.33707735]
[1738715136507,0.25261084,97948.0,97947.0,0.33707735]
[1738715136917,0.25261084,97948.0,97947.0,0.3298]
[1738715137342,0.25261084,97948.0,97947.0,0.33695281]
[1738715138576,0.13009784,97948.0,97947.0,0.33695281]
[1738715139387,0.13009784,97948.0,97947.0,0.3298]
[1738715139526,0.13009784,97948.0,97947.0,0.33695281]
[1738715144819,0.25261084,97948.0,97947.0,0.33695281]
[1738715146533,0.25261084,97948.0,97947.0,0.3298]
[1738715146985,0.25261084,97948.0,97947.0,0.33697498]
[1738715147210,0.13009784,97948.0,97947.0,0.33697498]
[1738715147888,0.25261084,97948.0,97947.0,0.33697498]
[1738715150255,0.13009784,97948.0,97947.0,0.33697498]
[1738715151586,0.04859784,97948.0,97947.0,0.33697498]
[1738715152795,0.17111084,97948.0,97947.0,0.33697498]
[1738715153064,0.17111084,97948.0,97947.0,0.3298]
[1738715153565,0.17111084,97948.0,97947.0,0.336981]
[1738715154253,0.04859784,97948.0,97947.0,0.336981]
[1738715154501,0.04859784,97948.0,97947.0,0.459496]
[1738715154976,0.04859784,97948.0,97947.0,0.336981]
[1738715155220,0.04859784,97948.0,97947.0,0.56188106]
[1738715155457,0.00019784,97948.0,97947.0,0.56188106]
[1738715156449,0.00019784,97948.0,97947.0,0.43936606]
[1738715156887,0.00019784,97948.0,97947.0,0.56188106]
[1738715158082,0.00019784,97948.0,97947.0,0.336981]
[1738715158366,0.16991084,97948.0,97947.0,0.336981]
[1738715158610,0.24921084,97948.0,97947.0,0.3298]
[1738715158819,0.24921084,97948.0,97947.0,0.33698655]
[1738715159476,0.12669784,97948.0,97947.0,0.33698655]
[1738715159707,0.04739784,97948.0,97947.0,0.33698655]
[1738715159928,0.04739784,97948.0,97947.0,0.45950155]
[1738715160192,0.00019784,97948.0,97947.0,0.56188661]
[1738715160454,0.00019784,97948.0,97947.0,1.06868661]
[1738715160664,0.00019784,97948.0,97947.0,1.21868661]
[1738715162785,0.00019784,97948.0,97947.0,1.26898661]
[1738715165029,0.00019784,97948.0,97947.0,1.14268661]
[1738715165435,0.00019784,97948.0,97947.0,0.99268661]
[1738715166885,0.00019784,97948.0,97947.0,1.14268661]
[1738715173067,0.00019784,97948.0,97947.0,1.17568661]
[1738715173293,8.4e-07,97948.0,97947.0,1.27158661]
[1738715173559,0.0001066,97965.0,97964.0,0.272493]
[1738715173805,0.0001066,97965.0,97964.0,0.47897806]
[1738715174038,0.0001066,97965.0,97964.0,0.48597637]
[1738715174735,6e-07,97965.0,97964.0,1.25657637]
[1738715175752,0.00022408,97994.0,97992.0,0.272458]
[1738715175948,0.00022408,97994.0,97992.0,1.14239058]
[1738715176160,0.00030083,97993.0,97992.0,1.14239058]
[1738715179013,0.00030083,97993.0,97992.0,1.15272437]
[1738715183215,0.00030083,97993.0,97992.0,1.23322437]
[1738715184925,0.00030083,97993.0,97992.0,1.25622437]
[1738715185333,8.3e-07,97993.0,97992.0,1.25622437]
[1738715185543,0.00022408,97994.0,97992.0,1.25622437]
[1738715185544,9.1e-07,97994.0,97993.0,0.193]
[1738715185760,9.1e-07,97994.0,97993.0,0.29660915]
[1738715185963,9.1e-07,97994.0,97993.0,0.30218227]
[1738715186685,9.1e-07,97994.0,97993.0,0.3210388]
[1738715187131,9.1e-07,97994.0,97993.0,1.9464388]
[1738715187335,0.0612738,98028.0,97993.0,1.9464388]
[1738715187336,9e-07,98009.0,98008.0,0.373038]
[1738715187556,0.0147738,98028.0,98027.0,0.295415]
[1738715187781,0.015242,98028.0,98027.0,1.16509916]
[1738715188220,8e-07,98046.0,98045.0,0.282392]
[1738715188405,2.3e-07,98046.0,98045.0,0.40777706]
[1738715188659,2.3e-07,98046.0,98045.0,0.41441744]
[1738715189033,2.3e-07,98046.0,98045.0,0.40441744]
[1738715189261,2.3e-07,98046.0,98045.0,0.41441744]
[1738715190805,2.3e-07,98046.0,98045.0,0.38141744]
[1738715190997,2.3e-07,98046.0,98045.0,1.14201653]
[1738715191846,2.3e-07,98046.0,98045.0,1.15220187]
[1738715194209,2.3e-07,98046.0,98045.0,1.18220972]
[1738715195009,2.3e-07,98046.0,98045.0,1.15220187]
[1738715196805,2.3e-07,98046.0,98045.0,1.18220991]
[1738715197811,2.3e-07,98046.0,98045.0,1.18243398]
[1738715198041,0.00010693,98046.0,98045.0,1.18243398]
[1738715198692,0.00010693,98046.0,98045.0,1.15242594]
[1738715199733,0.04053893,98068.0,98066.0,0.122366]
[1738715199916,0.04053893,98068.0,98067.0,0.43218415]
[1738715200100,0.04053893,98068.0,98067.0,0.43868011]
[1738715200862,0.04053893,98068.0,98058.0,0.12616543]
[1738715200863,0.12238,98055.0,98047.0,0.122389]
[1738715200995,0.0823,98054.0,98046.0,0.32979909]
[1738715201202,0.08244035,98054.0,98047.0,0.10238506]
[1738715201404,0.122388,98049.0,98047.0,0.10238506]
[1738715201993,0.08244035,98054.0,98046.0,0.32979909]
[1738715202366,0.12239,98047.0,98046.0,0.32979909]
[1738715202568,0.16869,98047.0,98046.0,0.32979909]
[1738715203639,0.0463,98047.0,98046.0,0.32979909]
[1738715203854,0.0463,98047.0,98046.0,0.55457515]
[1738715205868,0.0463,98047.0,98046.0,0.43218415]
[1738715206115,0.0463,98047.0,98046.0,0.32979909]
[1738715208478,0.0463,98047.0,98046.0,0.33528539]
[1738715209398,0.0464067,98047.0,98046.0,0.33528539]
[1738715211055,0.0464067,98047.0,98046.0,0.45767639]
[1738715212061,0.0464067,98047.0,98046.0,0.56006145]
[1738715212330,0.0001067,98047.0,98046.0,1.14086145]
[1738715215366,7e-07,98047.0,98046.0,1.24486145]
[1738715215714,0.00014035,98054.0,98046.0,1.24486145]
[1738715215715,5e-08,98054.0,98046.0,1.24486145]
[1738715215936,5e-08,98054.0,98053.0,0.39776706]
[1738715216354,5e-08,98054.0,98053.0,0.40325142]
[1738715216758,5e-08,98054.0,98053.0,1.16385051]
[1738715216971,0.0499,98085.0,98084.0,0.122344]
[1738715217173,0.05004032,98085.0,98084.0,0.98532815]
[1738715217382,0.05004032,98085.0,98084.0,0.99073751]
[1738715218211,0.00014032,98085.0,98084.0,0.99073751]
[1738715218410,0.00014032,98085.0,98084.0,1.14073751]
[1738715220047,0.00014032,98085.0,98084.0,1.15085568]
[1738715221538,0.00024702,98085.0,98084.0,1.15085568]
[1738715221749,0.00024702,98085.0,98084.0,1.17385568]
[1738715222381,0.00024702,98085.0,98084.0,1.17879635]
[1738715223934,0.00024702,98085.0,98084.0,1.15085568]
[1738715224156,0.00024702,98085.0,98084.0,0.43759351]
[1738715225061,0.17248902,98085.0,98084.0,0.00540936]
[1738715225481,0.05014702,98085.0,98063.0,0.01003713]
[1738715225684,0.17248902,98085.0,98075.0,0.37468486]
[1738715225893,0.05014702,98085.0,98083.0,0.122345]
[1738715226490,0.05014702,98085.0,98084.0,0.00527791]
[1738715226914,0.05014702,98085.0,98078.0,0.163134]
[1738715227094,0.05014702,98085.0,98084.0,0.00527791]
[1738715227290,0.05014702,98085.0,98079.0,0.10238506]
[1738715227491,0.05014702,98085.0,98084.0,0.00527791]
[1738715227713,0.05014702,98085.0,98084.0,0.10238506]
[1738715227913,0.05014702,98085.0,98084.0,0.10766297]
[1738715230337,0.05014702,98085.0,98084.0,0.23000697]
[1738715231423,0.05014702,98085.0,98084.0,0.99060606]
[1738715232015,0.00024702,98085.0,98084.0,0.99060606]
[1738715239888,0.0001068,98092.0,98090.0,0.122336]
[1738715240084,0.0001068,98092.0,98090.0,0.23002401]
[1738715244215,0.0001068,98092.0,98090.0,0.10768801]
[1738715244426,0.0001068,98092.0,98090.0,0.23002401]
[1738715245775,0.0001068,98092.0,98090.0,0.9906231]
[1738715248511,0.0001068,98092.0,98090.0,1.000894]
[1738715250241,0.0001068,98092.0,98090.0,1.150894]
[1738715250466,0.0001068,98092.0,98091.0,0.373135]
[1738715250467,6e-07,98092.0,98091.0,0.373135]
[1738715250779,6e-07,98092.0,98091.0,0.48077857]
[1738715251381,6e-07,98092.0,98091.0,0.50339769]
[1738715251600,6e-07,98092.0,98091.0,0.53356831]
[1738715251807,6e-07,98092.0,98091.0,0.51094919]
[1738715253890,0.0489,98135.0,98125.0,0.122292]
[1738715254107,0.01563652,98126.0,98125.0,0.98527615]
[1738715254300,0.01563652,98126.0,98125.0,0.99052353]
[1738715255192,0.01563652,98126.0,98125.0,1.02069415]
[1738715255398,0.01554557,98126.0,98125.0,1.17069415]
[1738715255963,0.01554557,98126.0,98125.0,1.19369415]
[1738715258533,0.01554557,98126.0,98125.0,1.20391411]
[1738715259115,0.01565237,98126.0,98125.0,1.18091411]
[1738715260771,0.01565237,98126.0,98125.0,1.15074349]
[1738715261373,0.01565237,98126.0,98125.0,1.14052353]
[1738715261766,0.01565237,98126.0,98125.0,1.13527615]
[1738715262370,0.01565237,98126.0,98125.0,0.98527615]
[1738715262586,0.06275237,98126.0,98125.0,0.98527615]
[1738715263401,0.06275237,98126.0,98125.0,0.86298415]
[1738715263810,0.06275237,98126.0,98125.0,0.76059909]
[1738715264010,0.14555237,98126.0,98125.0,0.76059909]
[1738715264213,0.14555237,98126.0,98116.0,0.12616543]
[1738715264214,0.122302,98117.0,98116.0,0.12616543]
[1738715264420,0.0459,98108.0,98107.0,0.12616543]
[1738715264627,0.168214,98108.0,98107.0,0.10238506]
[1738715264821,0.0459,98108.0,98107.0,0.10238506]
[1738715265218,0.0799,98107.0,98098.0,0.12616543]
[1738715265439,0.122325,98099.0,98098.0,0.12616543]
[1738715265621,0.163097,98101.0,98089.0,0.12616543]
[1738715265859,0.0799,98107.0,98091.0,0.10238506]
[1738715266048,0.202215,98107.0,98099.0,0.122325]
[1738715266255,0.202215,98107.0,98100.0,0.10238506]
[1738715266592,0.0799,98107.0,98100.0,0.10238506]
[1738715266794,0.0799,98107.0,98097.0,0.12616543]
[1738715267020,0.122326,98098.0,98097.0,0.12616543]
[1738715267245,0.122326,98098.0,98090.0,0.12255928]
[1738715267449,0.163088,98106.0,98091.0,0.10238506]
[1738715267649,0.122321,98102.0,98096.0,0.12616543]
[1738715267966,0.16309,98105.0,98096.0,0.12616543]
[1738715267967,0.0799,98107.0,98096.0,0.12616543]
[1738715268193,0.0799,98107.0,98101.0,0.122321]
[1738715268528,0.0799,98107.0,98098.0,0.163101]
[1738715268729,0.0799,98107.0,98099.0,0.10238506]
[1738715269393,0.202216,98107.0,98099.0,0.22471006]
[1738715269601,0.122326,98098.0,98096.0,0.12616543]
[1738715269773,0.122328,98097.0,98089.0,0.122337]
[1738715269976,0.122325,98099.0,98091.0,0.10238506]
[1738715270763,0.122327,98098.0,98091.0,0.10238506]
[1738715271814,0.163099,98100.0,98091.0,0.22472006]
[1738715272407,0.122324,98100.0,98091.0,0.22472006]
[1738715273126,0.163095,98103.0,98091.0,0.10238506]
[1738715273469,0.0799,98107.0,98094.0,0.122331]
[1738715273470,0.122318,98105.0,98094.0,0.122331]
[1738715273622,0.0799,98107.0,98103.0,0.12232]
[1738715273844,0.077,98116.0,98101.0,0.163097]
[1738715274169,0.122307,98114.0,98105.0,0.122316]
[1738715274329,0.240073,98116.0,98103.0,0.122319]
[1738715274671,0.163076,98114.0,98101.0,0.122322]
[1738715274972,0.122313,98109.0,98101.0,0.122322]
[1738715275410,0.122311,98111.0,98102.0,0.12232]
[1738715275646,0.122311,98111.0,98099.0,0.10238506]
[1738715275647,0.163076,98114.0,98101.0,0.163097]
[1738715276063,0.122311,98110.0,98102.0,0.12232]
[1738715276277,0.163079,98112.0,98100.0,0.122323]
[1738715276477,0.163087,98107.0,98100.0,0.10238506]
[1738715276891,0.122319,98104.0,98100.0,0.10238506]
[1738715277097,0.163088,98106.0,98100.0,0.10238506]
[1738715277305,0.12232,98104.0,98100.0,0.10238506]
[1738715277646,0.163088,98106.0,98100.0,0.10238506]
[1738715277647,0.122317,98106.0,98100.0,0.10238506]
[1738715278223,0.163077,98113.0,98103.0,0.12232]
[1738715278474,0.122313,98109.0,98101.0,0.22470706]
[1738715278677,0.122317,98106.0,98101.0,0.10238506]
[1738715278890,0.122324,98100.0,98098.0,0.00022428]
[1738715279038,0.1302,98099.0,98098.0,0.00022428]
[1738715281307,0.122335,98091.0,98071.0,0.32979909]
[1738715281517,0.245735,98091.0,98071.0,0.32979909]
[1738715281694,0.3039304,98091.0,98071.0,0.32979909]
[1738715282364,0.3039304,98091.0,98080.0,0.12616543]
[1738715282598,0.245735,98091.0,98080.0,0.12616543]
[1738715286027,0.01043363,98099.0,98086.0,0.08187536]
[1738715286229,6.196e-05,98099.0,98098.0,0.08187536]
[1738715286436,6.196e-05,98099.0,98098.0,0.37471106]
[1738715288267,6.196e-05,98099.0,98098.0,0.10238506]
[1738715288470,6.196e-05,98099.0,98097.0,0.122327]
[1738715288873,6.196e-05,98099.0,98092.0,0.163111]
[1738715289076,6.196e-05,98099.0,98095.0,0.122329]
[1738715289260,6.196e-05,98099.0,98098.0,0.122326]
[1738715291103,6.196e-05,98099.0,98093.0,0.10238506]
[1738715291104,6.196e-05,98099.0,98095.0,0.122329]
[1738715291315,6.196e-05,98099.0,98096.0,0.122328]
[1738715291509,6.196e-05,98099.0,98097.0,0.122327]
[1738715293442,6.196e-05,98099.0,98098.0,0.10360834]
[1738715293643,6.196e-05,98099.0,98098.0,1.01420743]
[1738715293991,6.196e-05,98099.0,98098.0,1.04603529]
[1738715293992,9.6e-07,98099.0,98098.0,1.04603529]
[1738715294536,9.6e-07,98099.0,98098.0,1.05603529]
[1738715294667,0.01551205,98126.0,98125.0,0.122292]
[1738715294844,0.01557402,98126.0,98125.0,0.98527615]
[1738715300938,0.01557402,98126.0,98125.0,0.88289109]
[1738715301293,0.06377402,98126.0,98116.0,0.12616543]
[1738715301495,0.06377402,98126.0,98117.0,0.122302]
[1738715301693,0.06377402,98126.0,98120.0,0.122298]
[1738715302778,0.06377402,98126.0,98118.0,0.1223]
[1738715303339,0.06377402,98126.0,98120.0,0.122298]
[1738715303545,0.06377402,98126.0,98121.0,0.10238506]
[1738715303687,0.06377402,98126.0,98125.0,0.122292]
[1738715303889,0.06377402,98126.0,98125.0,0.22467706]
[1738715306031,0.01557402,98126.0,98125.0,0.22467706]
[1738715306202,0.01557402,98126.0,98125.0,0.65547706]
[1738715307107,0.01557402,98126.0,98125.0,0.80547706]
[1738715307572,0.01557402,98126.0,98125.0,0.82847706]
[1738715308812,0.01557402,98126.0,98125.0,19.82847706]
[1738715309267,0.01557402,98126.0,98125.0,19.80547706]
[1738715310780,0.01557402,98126.0,98125.0,38.80547706]
[1738715311395,0.01557402,98126.0,98125.0,39.13527615]
[1738715311820,0.01557402,98126.0,98125.0,39.15827615]
[1738715312171,0.01557402,98126.0,98125.0,39.13527615]
[1738715312944,0.01557402,98126.0,98125.0,38.98527615]
[1738715313106,0.01557402,98126.0,98125.0,39.13527615]
[1738715313271,0.01557402,98126.0,98125.0,20.13527615]
[1738715314597,0.01557402,98126.0,98125.0,20.21037615]
[1738715314804,0.01557402,98126.0,98125.0,20.23337615]
[1738715315031,2e-08,98126.0,98125.0,19.80257615]
[1738715315393,5e-07,98136.0,98135.0,0.29528]
[1738715315622,0.00046807,98136.0,98135.0,0.39766506]
[1738715317144,0.00046807,98136.0,98135.0,0.37466506]
[1738715318351,0.00046807,98136.0,98135.0,0.38486395]
[1738715319696,0.00046807,98136.0,98135.0,0.40786395]
[1738715320229,0.00046807,98136.0,98135.0,0.43793582]
[1738715320360,7e-08,98136.0,98135.0,0.43793582]
[1738715321647,7e-08,98136.0,98135.0,0.41493582]
[1738715322709,7e-08,98136.0,98135.0,0.38486395]
[1738715328124,7e-08,98136.0,98135.0,0.40786395]
[1738715328241,7e-08,98136.0,98135.0,0.48296395]
[1738715328441,6.687e-05,98145.0,98144.0,0.122269]
[1738715328683,6.687e-05,98145.0,98144.0,0.37465406]
[1738715336124,6.687e-05,98145.0,98144.0,0.22465406]
[1738715336335,0.04726687,98145.0,98144.0,0.22465406]
[1738715338784,0.04726687,98145.0,98144.0,0.37465406]
[1738715339760,6.687e-05,98145.0,98144.0,0.37465406]
[1738715340370,6.687e-05,98145.0,98144.0,0.22465406]
[1738715344521,0.1305,98144.0,98136.0,0.163039]
[1738715344757,0.1305,98144.0,98135.0,0.37483414]
[1738715344956,0.1305,98144.0,98135.0,0.25255514]
[1738715345138,0.12227,98143.0,98136.0,0.122278]
[1738715345438,0.12227,98143.0,98135.0,0.25255514]
[1738715345439,0.12227,98143.0,98137.0,0.122277]
[1738715345600,0.1305,98144.0,98135.0,0.25255514]
[1738715345799,0.1305,98144.0,98139.0,0.122275]
[1738715345999,0.1305,98144.0,98135.0,0.25255514]
[1738715346337,0.12227,98143.0,98136.0,0.122279]
[1738715346537,0.12227,98143.0,98135.0,0.25255514]
[1738715346776,0.1305,98144.0,98135.0,0.25255514]
[1738715346927,0.1305,98144.0,98141.0,0.122272]
[1738715347690,0.1305,98144.0,98135.0,0.25255514]